bitfinex-derivatives/quotes_BNBF0:USTF0_20251203
["timestamp","ask_amount","ask_price","bid_price","bid_amount"]
[1764780660414,0.82845265,901.62,901.04,1.178]
[1764780660719,0.82845265,901.61,901.05,1.079]
[1764780661317,0.82845265,901.62,901.05,1.079]
[1764780664222,0.82845265,901.63,901.05,1.079]
[1764780667226,0.82845265,901.64,901.05,1.079]
[1764780668126,0.82845265,901.68,901.05,1.079]
[1764780668622,0.82845265,901.7,901.05,1.079]
[1764780670028,0.82845265,901.75,901.05,1.079]
[1764780670323,0.00804262,902.55,901.05,1.079]
[1764780670324,0.82845265,901.76,901.05,1.079]
[1764780670926,0.82845265,901.8,901.05,1.079]
[1764780671124,0.82845265,901.82,901.05,1.079]
[1764780671327,0.82845265,901.9,901.05,1.079]
[1764780671527,0.82845265,902.05,901.05,1.079]
[1764780671729,0.82845265,902.07,901.05,1.079]
[1764780671929,0.82845265,902.06,901.05,1.079]
[1764780672130,0.82845265,902.07,901.05,1.079]
[1764780672330,0.82845265,902.08,901.05,1.079]
[1764780673229,0.19296884,902.29,901.05,1.079]
[1764780673230,0.82845265,902.1,901.05,1.079]
[1764780673430,0.82845265,902.09,901.05,1.079]
[1764780673930,0.82845265,901.97,901.05,1.079]
[1764780674131,0.82845265,901.96,901.05,1.079]
[1764780674330,0.82845265,901.97,901.05,1.079]
[1764780674830,1.09230288,902.13,901.05,1.079]
[1764780674831,0.82845265,901.96,901.05,1.079]
[1764780675228,0.82845265,901.95,901.05,1.079]
[1764780675427,0.82845265,901.88,901.05,1.079]
[1764780675631,0.82845265,901.87,901.04,1.178]
[1764780676633,0.82845265,901.83,901.04,1.178]
[1764780676833,0.19296884,902.29,901.04,1.178]
[1764780676834,0.82845265,901.81,901.04,1.178]
[1764780677133,0.82845265,901.8,901.04,1.178]
[1764780678035,0.82845265,901.82,901.04,1.178]
[1764780678835,0.82845265,901.81,901.04,1.178]
[1764780679533,0.82845265,901.81,900.79,8.44107374]
[1764780679731,0.82845265,901.81,901.05,1.269]
[1764780681135,0.82845265,901.8,901.05,1.269]
[1764780681337,0.82845265,901.8,901.06,1.114]
[1764780682638,1.09230288,902.06,901.06,1.114]
[1764780683838,1.09230288,902.05,901.06,1.114]
[1764780686135,1.09230288,901.94,901.06,1.114]
[1764780686640,1.09230288,901.92,901.06,1.114]
[1764780686839,1.09230288,901.91,901.06,1.114]
[1764780688034,1.09230288,901.92,901.06,1.114]
[1764780688238,1.09230288,901.94,901.06,1.114]
[1764780689338,1.09230288,901.96,901.06,1.114]
[1764780690240,1.09230288,901.97,901.06,1.114]
[1764780690536,1.09230288,901.98,901.06,1.114]
[1764780690734,1.09230288,902.06,901.06,1.114]
[1764780692138,1.09230288,902.07,901.06,1.114]
[1764780692441,1.09230288,902.12,901.06,1.114]
[1764780692641,1.09230288,902.13,901.06,1.114]
[1764780693043,1.09230288,902.16,901.06,1.114]
[1764780693738,1.09230288,902.18,901.06,1.114]
[1764780694039,1.09230288,902.21,901.06,1.114]
[1764780694237,0.19296884,902.29,901.06,1.114]
[1764780694238,1.09230288,902.27,901.06,1.114]
[1764780695140,1.09230288,902.28,901.06,1.114]
[1764780695644,1.28527172,902.29,901.06,1.114]
[1764780698342,1.09230288,902.2,901.06,1.114]
[1764780700047,1.09230288,902.19,901.06,1.114]
[1764780701149,1.09230288,902.18,901.06,1.114]
[1764780701844,1.09230288,902.2,901.06,1.114]
[1764780702947,1.09230288,902.18,901.06,1.114]
[1764780703447,1.09230288,902.19,901.06,1.114]
[1764780704448,1.09230288,902.18,901.06,1.114]
[1764780705255,1.09230288,902.17,901.06,1.114]
[1764780705756,1.09230288,902.18,901.06,1.114]
[1764780706652,0.19296884,902.29,901.06,1.114]
[1764780706653,1.09230288,902.16,901.06,1.114]
[1764780707354,0.19296884,902.29,901.06,1.114]
[1764780707659,0.19296884,902.29,901.14,0.81792868]
[1764780707853,1.09230288,902.53,901.15,0.81792868]
[1764780708053,0.19291588,902.43,901.15,0.81792868]
[1764780708358,0.19291588,902.43,901.22,0.81792868]
[1764780709055,0.19291588,902.43,901.23,1.038]
[1764780716160,1.09230288,902.35,901.23,1.038]
[1764780717265,1.09230288,902.33,901.23,1.038]
[1764780717859,1.09230288,902.33,901.24,0.829]
[1764780718062,1.09230288,902.26,901.24,0.829]
[1764780718259,1.09230288,902.24,901.24,0.829]
[1764780718461,1.09230288,902.22,901.24,0.829]
[1764780720764,1.09230288,902.2,901.24,0.829]
[1764780721868,1.09230288,902.21,901.24,0.829]
[1764780722064,1.09230288,902.22,901.24,0.829]
[1764780723269,1.09230288,902.21,901.24,0.829]
[1764780723668,1.09230288,902.21,901.25,1.183]
[1764780723869,1.09230288,902.23,901.25,1.183]
[1764780724472,1.09230288,902.21,901.25,1.183]
[1764780726878,1.09230288,902.22,901.25,1.183]
[1764780728078,1.09230288,902.3,901.25,1.183]
[1764780728779,1.09230288,902.33,901.25,1.183]
[1764780728979,0.19291588,902.43,901.28,0.81792868]
[1764780729279,0.19291588,902.43,901.29,0.81792868]
[1764780730479,0.19291588,902.43,901.3,1.162]
[1764780730980,0.19291588,902.43,901.31,0.81792868]
[1764780731280,0.19291588,902.43,901.33,0.81792868]
[1764780732980,0.19291588,902.43,901.3,1.162]
[1764780732981,0.19291588,902.43,901.31,0.81792868]
[1764780734080,0.19291588,902.43,901.3,1.162]
[1764780734081,0.19291588,902.43,901.3,1.97992868]
[1764780734281,0.19291588,902.43,901.3,1.162]
[1764780742385,1.28521876,902.43,901.31,0.906]
[1764780742682,1.09230288,902.42,901.31,0.906]
[1764780744287,1.09230288,902.41,901.31,0.906]
[1764780744886,1.09230288,902.42,901.31,0.906]
[1764780745182,1.09230288,902.41,901.31,0.906]
[1764780746085,1.28521876,902.43,901.31,0.906]
[1764780747086,0.19291588,902.43,901.31,0.906]
[1764780747283,1.28521876,902.43,901.31,0.906]
[1764780747688,0.19291588,902.43,901.31,0.906]
[1764780749982,0.19291588,902.43,901.32,1.278]
[1764780750383,1.28521876,902.43,901.32,1.278]
[1764780751288,1.09230288,902.42,901.32,1.278]
[1764780752288,1.09230288,902.41,901.32,1.278]
[1764780753290,1.09230288,902.4,901.32,1.278]
[1764780753590,1.09230288,902.41,901.32,1.278]
[1764780753793,1.09230288,902.42,901.32,1.278]
[1764780754391,1.09230288,902.42,901.32,2.09592868]
[1764780754890,1.09230288,902.41,901.32,1.278]
[1764780755193,0.19291588,902.43,901.32,1.278]
[1764780755194,1.09230288,902.17,901.32,1.278]
[1764780755790,1.09230288,902.12,901.32,1.278]
[1764780756593,1.09230288,902.1,901.32,1.278]
[1764780756790,1.09230288,902.11,901.32,1.278]
[1764780757795,1.09230288,902.09,901.32,1.278]
[1764780758396,1.09230288,902.12,901.32,1.278]
[1764780758595,1.09230288,902.13,901.32,1.278]
[1764780760797,1.09230288,902.12,901.32,1.278]
[1764780761191,1.09230288,902.11,901.32,1.278]
[1764780761995,1.09230288,902.11,901.31,0.906]
[1764780763794,1.09230288,902.11,901.32,1.263]
[1764780764999,1.09230288,902.09,901.32,1.263]
[1764780767299,1.09230288,902.1,901.32,1.263]
[1764780767599,1.09230288,902.09,901.32,1.263]
[1764780767797,1.09230288,902.1,901.32,1.263]
[1764780768300,1.09230288,902.01,901.32,1.263]
[1764780768497,1.09230288,902.0,901.32,1.263]
[1764780772899,1.09230288,901.95,901.32,1.263]
[1764780774303,1.09230288,901.96,901.32,1.263]
[1764780777313,1.09230288,901.95,901.32,1.263]
[1764780778113,1.09230288,902.03,901.32,1.263]
[1764780780715,1.09230288,902.04,901.32,1.263]
[1764780780911,1.09230288,901.94,901.32,1.263]
[1764780781111,1.09230288,901.87,901.32,1.263]
[1764780781415,1.09230288,901.86,901.32,1.263]
[1764780782317,1.09230288,901.87,901.32,1.263]
[1764780783618,1.09230288,901.88,901.32,1.263]
[1764780784518,1.09230288,901.89,901.32,1.263]
[1764780785214,1.09230288,901.9,901.32,1.263]
[1764780785412,0.19291588,902.43,901.32,1.263]
[1764780785413,1.09230288,901.92,901.32,1.263]
[1764780785617,1.09230288,901.91,901.32,1.263]
[1764780787622,1.09230288,901.92,901.32,1.263]
[1764780788222,1.09230288,901.9,901.32,1.263]
[1764780789419,1.09230288,901.88,901.32,1.263]
[1764780790320,1.09230288,901.8,901.32,1.263]
[1764780790525,1.09230288,901.7,901.32,1.263]
[1764780791527,1.09230288,901.71,901.32,1.263]
[1764780791822,1.09230288,901.72,901.32,1.263]
[1764780792326,1.09230288,901.73,901.32,1.263]
[1764780792524,1.09230288,901.71,901.32,1.263]
[1764780793027,1.09230288,901.73,901.32,1.263]
[1764780795327,1.09230288,901.74,901.32,1.263]
[1764780798130,1.09230288,901.72,901.32,1.263]
[1764780798529,1.09230288,901.73,901.32,1.263]
[1764780800334,1.09230288,901.74,901.32,1.263]
[1764780800831,1.09230288,901.74,900.4,0.81792868]
[1764780801235,1.09230288,901.76,900.42,0.81792868]
[1764780802432,1.09230288,901.84,900.49,0.81792868]
[1764780803031,1.09230288,901.83,900.49,0.81792868]
[1764780803231,1.09230288,901.83,900.5,10.72543638]
[1764780803536,1.09230288,901.84,900.5,10.72543638]
[1764780804037,1.09230288,901.85,900.51,0.81792868]
[1764780804236,1.09230288,901.85,900.51,1.73692868]
[1764780804436,1.63771322,902.01,900.51,1.73692868]
[1764780804437,1.09230288,901.84,900.51,1.73692868]
[1764780804936,1.09230288,901.84,900.51,0.919]
[1764780805236,1.09230288,901.83,900.51,0.919]
[1764780805537,1.09230288,901.8,900.51,0.919]
[1764780805832,1.09230288,901.77,900.51,0.919]
[1764780806233,1.09230288,901.76,900.51,0.919]
[1764780806736,1.09230288,901.77,900.51,0.919]
[1764780807137,1.09230288,901.73,900.51,0.919]
[1764780807336,1.09230288,901.74,900.51,0.919]
[1764780808233,1.09230288,901.8,900.51,0.919]
[1764780808438,1.09230288,901.77,900.51,0.919]
[1764780808839,1.09230288,901.76,900.51,0.919]
[1764780809440,1.09230288,901.75,900.51,0.919]
[1764780810141,1.63771322,901.92,900.51,0.919]
[1764780810142,1.09230288,901.76,900.51,0.919]
[1764780810341,1.09230288,901.75,900.51,0.919]
[1764780811038,1.09230288,901.74,900.51,0.919]
[1764780811343,1.09230288,901.73,900.51,0.919]
[1764780811642,1.09230288,901.65,900.51,0.919]
[1764780811939,1.09230288,901.64,900.51,0.919]
[1764780812542,1.09230288,901.6,900.51,0.919]
[1764780812940,1.09230288,901.58,900.51,0.919]
[1764780813340,1.09230288,901.55,900.51,0.919]
[1764780813840,1.09230288,901.58,900.51,0.919]
[1764780814041,1.09230288,901.59,900.51,0.919]
[1764780814340,1.09230288,901.58,900.51,0.919]
[1764780815340,1.09230288,901.64,900.51,0.919]
[1764780815538,2.75553825,902.39,900.51,0.919]
[1764780815539,1.09230288,901.62,900.51,0.919]
[1764780815745,1.09230288,901.63,900.51,0.919]
[1764780816945,1.09230288,901.65,900.51,0.919]
[1764780818145,1.09230288,901.63,900.51,0.919]
[1764780818545,1.09230288,901.71,900.51,0.919]
[1764780820745,1.09230288,901.72,900.51,0.919]
[1764780820946,1.09230288,901.71,900.51,0.919]
[1764780822344,1.09230288,901.7,900.51,0.919]
[1764780824945,1.09230288,901.7,900.52,1.365]
[1764780825248,1.09230288,901.69,900.52,1.365]
[1764780827444,1.09230288,901.68,900.52,1.365]
[1764780828350,0.19291588,902.43,900.52,1.365]
[1764780828351,1.09230288,901.69,900.52,1.365]
[1764780828546,1.09230288,901.68,900.52,1.365]
[1764780830346,1.09230288,901.67,900.52,1.365]
[1764780830545,1.09230288,901.68,900.52,2.18292868]
[1764780831351,1.09230288,901.66,900.53,0.81792868]
[1764780831652,1.09230288,901.66,900.52,2.18292868]
[1764780832653,1.09230288,901.66,900.53,0.81792868]
[1764780833354,1.09230288,901.65,900.53,0.81792868]
[1764780834251,1.09230288,901.64,900.54,0.81792868]
[1764780834853,1.09230288,901.59,900.52,1.365]
[1764780835055,1.09230288,901.6,900.52,1.365]
[1764780835255,1.09230288,901.61,900.52,1.365]
[1764780835452,1.09230288,901.6,900.52,2.18292868]
[1764780836550,1.09230288,901.58,900.53,1.022]
[1764780837256,1.09230288,901.57,900.54,0.81792868]
[1764780838257,1.09230288,901.56,900.55,0.81792868]
[1764780838758,1.09230288,901.56,900.56,0.81792868]
[1764780839353,1.09230288,901.55,900.57,0.81792868]
[1764780839655,1.09230288,901.54,900.56,0.81792868]
[1764780839854,1.09230288,901.46,900.53,1.022]
[1764780840753,1.09230288,901.47,900.53,1.022]
[1764780841253,1.09230288,901.48,900.53,1.022]
[1764780841458,1.09230288,901.47,900.53,1.022]
[1764780842158,1.09230288,901.48,900.53,1.022]
[1764780842355,1.09230288,901.47,900.53,1.022]
[1764780845359,1.09230288,901.46,900.53,1.022]
[1764780847159,1.09230288,901.45,900.53,1.022]
[1764780847954,1.09230288,901.44,900.53,1.022]
[1764780848360,1.09230288,901.43,900.53,1.022]
[1764780849462,1.09230288,901.43,900.53,1.83992868]
[1764780850764,1.09230288,901.41,900.53,1.022]
[1764780851058,1.09230288,901.38,900.53,1.022]
[1764780851263,0.19291588,902.43,900.53,1.022]
[1764780851264,1.09230288,901.39,900.53,1.022]
[1764780851464,1.09230288,901.39,900.52,1.365]
[1764780853469,1.09230288,901.2,900.52,1.365]
[1764780853964,1.09230288,901.23,900.52,1.365]
[1764780854169,1.09230288,901.24,900.52,1.365]
[1764780854663,1.09230288,901.25,900.52,1.365]
[1764780854864,1.09230288,901.24,900.52,1.365]
[1764780855066,1.09230288,901.25,900.52,1.365]
[1764780855269,1.09230288,901.26,900.53,1.262]
[1764780856271,1.09230288,901.27,900.53,1.262]
[1764780857373,1.09230288,901.28,900.53,1.262]
[1764780857576,1.09230288,901.48,900.53,1.262]
[1764780857871,1.09230288,901.46,900.53,1.262]
[1764780858270,1.09230288,901.44,900.53,1.262]
[1764780859777,1.09230288,901.45,900.53,1.262]
[1764780861072,1.09230288,901.46,900.53,1.262]
[1764780861371,1.09230288,901.48,900.54,0.949]
[1764780862278,1.09230288,901.47,900.54,0.949]
[1764780863372,1.09230288,901.46,900.54,0.949]
[1764780865377,1.09230288,901.45,900.54,0.949]
[1764780868178,1.09230288,901.47,900.54,0.949]
[1764780868379,1.09230288,901.46,900.54,0.949]
[1764780870875,1.09230288,901.45,900.54,0.949]
[1764780871880,1.09230288,901.43,900.54,0.949]
[1764780872079,1.09230288,901.44,900.54,0.949]
[1764780875082,1.09230288,901.37,900.54,0.949]
[1764780875977,1.09230288,901.35,900.54,0.949]
[1764780876182,1.09230288,901.34,900.54,0.949]
[1764780876784,1.09230288,901.33,900.54,0.949]
[1764780877179,1.09230288,901.3,900.54,0.949]
[1764780877383,1.09230288,901.28,900.54,0.949]
[1764780878479,1.09230288,901.28,900.53,1.262]
[1764780878682,1.09230288,901.29,900.53,1.262]
[1764780878883,1.09230288,901.28,900.53,1.262]
[1764780879284,1.09230288,901.29,900.53,1.262]
[1764780880380,1.09230288,901.3,900.53,1.262]
[1764780880686,1.09230288,901.3,900.54,0.916]
[1764780880884,1.09230288,901.29,900.54,0.916]
[1764780882486,1.09230288,901.31,900.54,0.916]
[1764780882688,1.09230288,901.3,900.54,0.916]
[1764780882889,2.75553825,902.11,900.54,0.916]
[1764780882890,1.09230288,901.31,900.54,0.916]
[1764780883288,1.09230288,901.3,900.54,0.916]
[1764780883786,1.09230288,901.31,900.54,0.916]
[1764780887888,1.09230288,901.31,900.55,1.293]
[1764780890285,1.09230288,901.3,900.55,1.293]
[1764780890886,1.09230288,901.29,900.55,1.293]
[1764780892087,1.09230288,901.28,900.55,1.293]
[1764780892293,1.09230288,901.24,900.55,1.293]
[1764780892493,3.85775356,902.42,900.55,1.293]
[1764780892494,1.09230288,901.19,900.55,1.293]
[1764780893293,1.09230288,901.2,900.55,1.293]
[1764780893493,1.09230288,901.18,900.55,1.293]
[1764780893694,1.09230288,901.15,900.55,1.293]
[1764780894288,1.09230288,901.1,900.55,1.293]
[1764780895189,1.09230288,901.11,900.55,1.293]
[1764780896191,1.09230288,901.12,900.55,1.293]
[1764780896390,1.09230288,901.11,900.55,1.293]
[1764780897191,1.09230288,901.12,900.55,1.293]
[1764780898395,1.09230288,901.13,900.55,1.293]
[1764780900692,1.09230288,901.15,900.55,1.293]
[1764780901095,1.09230288,901.15,900.56,1.321]
[1764780902195,1.09230288,901.16,900.56,1.321]
[1764780903793,1.09230288,901.15,900.56,1.321]
[1764780904098,1.09230288,901.13,900.56,1.321]
[1764780904794,1.09230288,901.1,900.56,1.321]
[1764780904999,1.09230288,901.08,900.56,1.321]
[1764780905399,1.09230288,901.07,900.56,1.321]
[1764780906400,1.09230288,901.08,900.56,1.321]
[1764780907299,1.09230288,900.98,900.56,1.321]
[1764780908199,0.19320292,900.88,900.56,1.321]
[1764780910201,1.09230288,900.94,900.56,1.321]
[1764780910397,1.09230288,900.98,900.56,1.321]
[1764780911298,1.09230288,900.99,900.56,1.321]
[1764780911601,1.28548757,901.0,900.56,1.321]
[1764780913200,0.19318469,901.0,900.56,1.321]
[1764780918703,0.19318469,901.0,900.57,1.046]
[1764780919508,1.09230288,901.15,900.57,1.046]
[1764780919709,0.19316431,901.09,900.57,1.046]
[1764780919906,1.09230288,901.21,900.57,1.046]
[1764780920209,0.19314984,901.21,900.57,1.046]
[1764780922211,0.19314984,901.21,900.58,1.259]
[1764780925010,1.09230288,901.34,900.58,1.259]
[1764780925306,1.09230288,901.33,900.58,1.259]
[1764780927306,1.09230288,901.32,900.58,1.259]
[1764780928310,1.09230288,901.33,900.58,1.259]
[1764780930207,1.09230288,901.32,900.58,1.259]
[1764780930614,1.09230288,901.33,900.58,1.259]
[1764780930806,1.28542646,901.36,900.58,1.259]
[1764780932207,1.09230288,901.35,900.58,1.259]
[1764780934215,1.09230288,901.34,900.58,1.259]
[1764780934415,1.09230288,901.35,900.58,1.259]
[1764780934712,0.19312358,901.36,900.58,1.259]
[1764780934713,1.09230288,901.33,900.58,1.259]
[1764780935012,1.09230288,901.34,900.58,1.259]
[1764780935311,1.09230288,901.33,900.58,1.259]
[1764780938218,0.19312358,901.36,900.58,1.259]
[1764780953227,0.19312358,901.36,900.59,1.411]
[1764780957828,1.09230288,901.33,900.59,1.411]
[1764780958226,1.09230288,901.27,900.59,1.411]
[1764780958927,1.09230288,901.29,900.59,1.411]
[1764780959329,1.09230288,901.28,900.59,1.411]
[1764780959527,1.09230288,901.06,900.59,1.411]
[1764780959731,1.09230288,901.07,900.59,1.411]
[1764780960932,1.09230288,901.11,900.59,1.411]
[1764780961128,0.19312358,901.36,900.59,1.411]
[1764780961129,1.09230288,901.1,900.59,1.411]
[1764780961929,1.09230288,901.08,900.59,1.411]
[1764780963632,1.09230288,901.1,900.59,1.411]
[1764780968438,1.09230288,901.14,900.59,1.411]
[1764780969237,1.09230288,901.14,900.6,1.142]
[1764780969434,1.09230288,901.13,900.6,1.142]
[1764780971339,1.09230288,901.12,900.6,1.142]
[1764780974336,1.09230288,901.1,900.6,1.142]
[1764780974841,1.09230288,901.11,900.6,1.142]
[1764780975843,1.09230288,901.26,900.6,1.142]
[1764780976242,1.09230288,901.25,900.6,1.142]
[1764780977346,1.09230288,901.24,900.6,1.142]
[1764780978344,1.09230288,901.18,900.6,1.142]
[1764780980749,1.09230288,901.19,900.6,1.142]
[1764780981049,1.09230288,901.21,900.6,1.142]
[1764780982146,1.09230288,901.2,900.59,1.411]
[1764780982352,1.09230288,901.21,900.59,1.411]
[1764780983051,1.09230288,901.23,900.59,1.411]
[1764780983252,1.09230288,901.44,900.59,1.411]
[1764780983453,1.09230288,901.43,900.59,1.411]
[1764780983649,1.28542324,901.44,900.59,1.411]
[1764780984150,0.19312036,901.44,900.59,1.411]
[1764780984653,0.19312036,901.44,900.6,1.284]
[1764780989759,1.28542324,901.44,900.6,1.284]
[1764780990758,1.09230288,901.43,900.6,1.284]
[1764780991859,1.09230288,901.36,900.6,1.284]
[1764780994159,1.09230288,901.32,900.6,1.284]
[1764780994359,1.09230288,901.27,900.6,1.284]
[1764780994556,0.19312036,901.44,900.6,1.284]
[1764780994557,1.09230288,901.19,900.6,1.284]
[1764780994860,1.09230288,901.17,900.6,1.284]
[1764780995356,1.09230288,901.18,900.6,1.284]
[1764780996057,1.09230288,901.19,900.6,1.284]
[1764780998263,1.09230288,901.15,900.6,1.284]
[1764780998762,1.09230288,901.15,900.61,1.034]
[1764781001366,1.09230288,901.18,900.61,1.034]
[1764781002165,1.09230288,901.21,900.61,1.034]
[1764781003161,1.09230288,901.2,900.61,1.034]
[1764781003365,1.09230288,901.21,900.61,1.034]
[1764781004161,1.09230288,901.2,900.61,1.034]
[1764781004366,1.09230288,901.19,900.61,1.034]
[1764781007069,1.09230288,901.2,900.61,1.034]
[1764781007268,1.09230288,901.19,900.61,1.034]
[1764781008371,1.09230288,901.22,900.61,1.034]
[1764781008571,1.09230288,901.21,900.62,1.254]
[1764781009066,1.09230288,901.19,900.62,1.254]
[1764781009571,1.09230288,901.18,900.62,1.254]
[1764781010267,1.09230288,901.17,900.62,1.254]
[1764781010776,1.09230288,901.14,900.62,1.254]
[1764781011270,1.09230288,901.1,900.62,1.254]
[1764781011470,1.09230288,901.04,900.62,1.254]
[1764781011674,1.09230288,901.06,900.62,1.254]
[1764781012075,1.09230288,901.07,900.62,1.254]
[1764781014271,1.09230288,901.06,900.62,1.254]
[1764781014873,1.09230288,901.08,900.62,1.254]
[1764781015076,1.09230288,901.07,900.62,1.254]
[1764781015377,1.09230288,901.1,900.62,1.254]
[1764781015578,1.09230288,901.22,900.62,1.254]
[1764781017481,1.09230288,901.21,900.62,1.254]
[1764781018182,1.09230288,901.19,900.62,1.254]
[1764781018676,1.09230288,901.18,900.62,1.254]
[1764781019081,1.09230288,901.19,900.62,1.254]
[1764781021285,1.09230288,901.17,900.62,1.254]
[1764781021486,1.09230288,901.19,900.62,1.254]
[1764781021687,1.09230288,901.18,900.62,1.254]
[1764781022387,1.09230288,901.17,900.62,1.254]
[1764781023286,1.09230288,901.18,900.62,1.254]
[1764781023583,1.09230288,901.13,900.62,1.254]
[1764781023786,1.09230288,901.11,900.62,1.254]
[1764781027889,1.09230288,901.11,900.63,1.406]
[1764781028189,1.09230288,901.13,900.63,1.406]
[1764781029690,1.09230288,901.11,900.63,1.406]
[1764781029890,1.09230288,901.01,900.63,1.406]
[1764781030086,0.19312036,901.44,900.63,1.406]
[1764781030087,1.09230288,900.94,900.63,1.406]
[1764781030286,1.09230288,900.93,900.63,1.406]
[1764781031389,0.19312036,901.44,900.63,1.406]
[1764781031390,1.09230288,900.91,900.63,1.406]
[1764781032493,1.09230288,900.92,900.63,1.406]
[1764781033292,1.09230288,900.93,900.63,1.406]
[1764781033594,1.09230288,900.94,900.63,1.406]
[1764781034897,1.09230288,900.95,900.63,1.406]
[1764781035397,1.09230288,901.0,900.63,1.406]
[1764781036899,1.09230288,901.13,900.63,1.406]
[1764781038396,1.09230288,901.12,900.64,1.125]
[1764781041401,1.09230288,901.13,900.64,1.125]
[1764781043198,1.09230288,901.12,900.64,1.125]
[1764781044403,1.09230288,901.11,900.64,1.125]
[1764781045001,1.09230288,901.1,900.64,1.125]
[1764781045206,1.09230288,901.09,900.64,1.125]
[1764781045902,1.09230288,901.08,900.64,1.125]
[1764781046105,1.09230288,901.07,900.64,1.125]
[1764781047203,1.09230288,901.06,900.65,1.077]
[1764781048300,1.09230288,900.92,900.65,1.077]
[1764781048701,1.09230288,900.89,900.65,1.077]
[1764781049001,1.09230288,900.84,900.65,1.077]
[1764781049201,1.09230288,900.83,900.65,1.077]
[1764781049403,1.09230288,900.82,900.65,1.077]
[1764781050003,1.09230288,900.76,900.65,1.077]
[1764781050305,1.09230288,900.73,900.65,1.077]
[1764781051206,1.09230288,900.72,900.65,1.077]
[1764781054610,1.09230288,900.71,900.65,1.077]
[1764781055309,1.09230288,900.72,900.65,1.077]
[1764781057713,1.09230288,900.73,900.65,1.077]
[1764781058310,1.09230288,900.88,900.65,1.077]
[1764781059910,1.09230288,900.84,900.65,1.077]
[1764781060514,1.09230288,900.85,900.65,1.077]
[1764781061017,1.09230288,900.86,900.65,1.077]
[1764781062516,1.09230288,900.87,900.65,1.077]
[1764781063818,1.09230288,900.81,900.65,1.077]
[1764781065514,1.09230288,900.73,900.65,1.077]
[1764781065713,1.09230288,900.7,900.65,1.077]
[1764781066418,1.09230288,900.71,900.65,1.077]
[1764781067316,1.09230288,900.72,900.65,1.077]
[1764781067612,1.09230288,900.75,900.65,1.077]
[1764781067818,1.09230288,900.74,900.65,1.077]
[1764781068317,1.63771322,900.81,900.65,1.077]
[1764781068513,1.63771322,900.8,900.65,1.077]
[1764781069920,1.63771322,900.79,900.65,1.077]
[1764781070220,1.63771322,900.78,900.65,1.077]
[1764781070515,2.75553825,901.43,900.65,1.077]
[1764781070516,1.63771322,900.79,900.65,1.077]
[1764781071519,1.63771322,900.8,900.65,1.077]
[1764781074327,1.63771322,900.81,900.65,1.077]
[1764781075021,1.63771322,900.79,900.65,1.077]
[1764781075227,0.19312036,901.44,900.65,1.077]
[1764781075527,2.75553825,901.24,900.65,1.077]
[1764781075827,2.75553825,901.26,900.65,1.077]
[1764781076324,2.75553825,901.2,900.65,0.10717186]
[1764781076825,2.75553825,901.21,900.65,0.10717186]
[1764781077524,2.75553825,901.2,900.65,0.10717186]
[1764781078425,2.75553825,901.12,900.65,0.10717186]
[1764781078834,2.75553825,901.1,900.65,0.10717186]
[1764781079535,2.75553825,901.12,900.65,0.10717186]
[1764781080434,2.75553825,901.11,900.65,0.10717186]
[1764781081035,2.75553825,901.12,900.65,0.10717186]
[1764781081535,2.75553825,901.14,900.65,0.10717186]
[1764781082836,2.75553825,901.16,900.65,0.10717186]
[1764781083036,2.75553825,901.15,900.65,0.10717186]
[1764781083632,2.75553825,901.17,900.65,0.10717186]
[1764781084641,2.75553825,901.19,900.65,0.10717186]
[1764781085638,2.75553825,901.18,900.65,0.10717186]
[1764781086335,2.75553825,901.18,900.65,0.01254226]
[1764781086638,2.75553825,901.2,900.65,0.01254226]